Cogmind - Beta 9.3 @@@ ROGUE MODE // 2019.12.28 @ 14:23:01 // Winter2019/RPGLIKE Player: badjay Result: Destroyed by H-55 Commando with Gauss Rifle Performance ------------- Evolutions (2) 1000 Regions Visited (5) 1000 Robots Destroyed (74) 370 Value Destroyed (1972) 1972 Prototype IDs (9) 180 Alien Tech Used (0) 0 Bonus (107) 107 TOTAL SCORE: 4629 Bonus ------- High Alert Combat Kills 107 Cogmind --------- Core Integrity 0/600 Matter 292/300 Energy 52/160 System Corruption 5% Temperature Cool (0) Movement Flying (32) Location -8/Materials Parts ------- > --- POWER (1) -------- Light Nuclear Core > --- PROPULSION (2) --- Improved Flight Unit Improved VTOL Module > --- UTILITY (6) ------ Advanced Sensor Array Advanced Terrain Scanner Advanced Targeting Computer Advanced Targeting Computer Target Analyzer Armor Integrity Analyzer > --- WEAPON (2) ------- EM Shotgun Shock Rifle > --- INVENTORY (0) ---- (None) Peak State ------------ > --- POWER ------------ Light Nuclear Core > --- PROPULSION ------- Improved Flight Unit Improved VTOL Module > --- UTILITY ---------- Advanced Sensor Array Advanced Terrain Scanner Advanced Targeting Computer Advanced Targeting Computer Target Analyzer Armor Integrity Analyzer > --- WEAPON ----------- EM Shotgun Shock Rifle > --- INVENTORY -------- (None) [Rating: 32] Favorites ----------- Power Light Ion Engine Engine Light Ion Engine Power Core Light Nuclear Core Propulsion Flight Unit Flight Unit Flight Unit Utility Improved Targeting Computer Device Terrain Scanner Processor Improved Targeting Computer Weapon Light Assault Rifle Energy Gun Heavy EM Pulse Gun Energy Cannon Heavy Particle Cannon Ballistic Gun Light Assault Rifle Build | -11 -10 -10 -10 -9 -8 ------- Run | Scr Mat Min Exi Min Mat Slots Evolved 7 | . 2 1 . . 4 Power . | . . . . . . Propulsion 1 | . . . . . 1 Utility 5 | . 1 1 . . 3 Weapon 1 | . 1 . . . . Parts Attached 35 | . 7 4 . 4 20 Power 2 | . 1 . . . 1 Engine 1 | . 1 . . . . Core 1 | . . . . . 1 Reactor . | . . . . . . Propulsion 6 | . 1 . . 1 4 Treads . | . . . . . . Leg . | . . . . . . Wheel . | . . . . . . Hover . | . . . . . . Flight 6 | . 1 . . 1 4 Utility 15 | . 3 1 . 3 8 Device 8 | . . 1 . 3 4 Storage . | . . . . . . Processor 7 | . 3 . . . 4 Hackware . | . . . . . . Protection . | . . . . . . Artifact . | . . . . . . Weapon 12 | . 2 3 . . 7 Energy Gun 5 | . . 1 . . 4 Energy Cannon 1 | . . . . . 1 Ballistic Gun 6 | . 2 2 . . 2 Ballistic Cannon . | . . . . . . Launcher . | . . . . . . Special Weapon . | . . . . . . Impact Weapon . | . . . . . . Slashing Weapon . | . . . . . . Piercing Weapon . | . . . . . . Special Melee Weapon . | . . . . . . Unidentified Prototypes 2 | . . . . 1 1 Parts Lost 2 | . . . . . 2 Power . | . . . . . . Propulsion . | . . . . . . Utility 1 | . . . . . 1 Weapon 1 | . . . . . 1 Highest Loss Streak 1 | . . . . . 1 Average Slot Usage (%) 87 | . 64 93 100 99 97 Engine 6 | . . 14 14 14 5 Core 1 | . . . . . 4 Flight 15 | . 17 14 14 13 14 Device 10 | . . 1 14 17 19 Processor 28 | . 24 30 28 23 32 Energy Gun 3 | . . . . . 9 Energy Cannon 1 | . . . . . 4 Ballistic Gun 17 | . 21 30 28 28 5 Naked Turns 7 | . 7 . . . . Heaviest Build 14 | . 5 8 8 9 14 Greatest Support 22 | 3 9 9 9 9 22 Greatest Overweight (x) 1 | . . . . . 1 Average Overweight (x) . | . . . . . . Largest Inventory Capacity . | . . . . . . Average Capacity . | . . . . . . Most Carried . | . . . . . . Average Carried . | . . . . . . Final Capacity . | . . . . . . Final Carried . | . . . . . . Class Distribution -------------------- 69% | Hacker-Mutant 18% | Hacker-Scout 11% | Hacker-Sprinter Dominant Class ---------------- Hacker-Mutant | -10/Materials Hacker-Mutant | -10/Mines Hacker-Mutant | -10/Exiles Hacker-Mutant | -9/Mines Hacker-Mutant | -8/Materials Resources | -11 -10 -10 -10 -9 -8 ----------- Run | Scr Mat Min Exi Min Mat Matter Collected 983 | 200 125 104 . 192 362 Remotely . | . . . . . . Salvage Created 2377 | . 498 186 . 348 1345 Parts 161 | . 45 25 . 16 75 Haulers Intercepted 5 | . 2 . . . 3 Recyclers Shooed 3 | . . . . 1 2 Parts Field Recycled . | . . . . . . Retrieved Matter . | . . . . . . Parts Self-Destructed . | . . . . . . Prevented . | . . . . . . Kills | -11 -10 -10 -10 -9 -8 ------- Run | Scr Mat Min Exi Min Mat Combat Hostiles Destroyed 54 | . 13 8 . 5 28 Melee 1 | . 1 . . . . Guns 44 | . 12 8 . 5 19 Cannons 5 | . . . . . 5 AOE 4 | . . . . . 4 Classes Destroyed 11 | . 4 3 . 2 2 Worker 5 | . . . . 2 3 Builder 2 | . . 1 . . 1 Tunneler 2 | . . 1 . 1 . Hauler 5 | . 2 . . . 3 Recycler 2 | . . . . 1 1 Watcher 4 | . 2 . . . 2 Swarmer 16 | . 3 6 . . 7 Grunt 30 | . 10 . . 5 15 Duelist 1 | . . . . . 1 Sentry 6 | . . 2 . . 4 Hunter 1 | . . . . . 1 Best Kill Streak 6 | . 6 4 . 3 6 Combat Bots Only 5 | . 5 3 . 2 4 Max Kills in Single Turn 3 | . 1 2 . 1 3 Gunslinging 1 | . . 1 . . . Exploded 3 | . . . . . 3 Melee 1 | . 1 . . . . Uniques/NPCs Destroyed . | . . . . . . Combat | -11 -10 -10 -10 -9 -8 -------- Run | Scr Mat Min Exi Min Mat Damage Taken 3148 | . 604 337 . 402 1805 Core 2635 | . 536 293 . 316 1490 Absorbed by Shields . | . . . . . . Redirected to Core 1739 | . 218 143 . 279 1099 Core Remaining (%) 87 | 100 . . . 74 . Volleys Fired 226 | . 71 27 . 38 90 Largest 2 | . 2 2 . 2 2 Hottest 120 | . 40 40 . 43 120 Shots Fired 348 | . 75 54 . 76 143 Gun 324 | . 75 54 . 76 119 Cannon 24 | . . . . . 24 Launcher . | . . . . . . Special . | . . . . . . Kinetic 256 | . 75 54 . 76 51 Thermal 24 | . . . . . 24 Explosive . | . . . . . . Electromagnetic 68 | . . . . . 68 Robot Hit Streak 36 | . 14 24 . 26 36 Robot Miss Streak 3 | . 2 3 . 1 3 Penetration Max . | . . . . . . Secondary Targets 6 | . . 2 . 2 2 Max Gunslinging Chain 1 | . . 1 . 1 1 Shots Hit Robots 288 | . 64 41 . 62 121 Core Hits 135 | . 39 17 . 15 64 Critical Hits 2 | . . . . . 2 Critical Kills 1 | . . . . . 1 Critical Parts Destroyed 1 | . . . . . 1 Melee Attacks . | . . . . . . Impact . | . . . . . . Slashing . | . . . . . . Piercing . | . . . . . . Sneak Attacks . | . . . . . . Combat Hostiles . | . . . . . . Follow-up Attacks . | . . . . . . Damage Inflicted 4804 | . 574 317 . 756 3157 Guns 3247 | . 546 317 . 756 1628 Cannons 525 | . . . . . 525 Explosions 1004 | . . . . . 1004 Melee . | . . . . . . Ramming 28 | . 28 . . . . Kinetic 2309 | . 546 317 . 756 690 Thermal 1442 | . . . . . 1442 Explosive 87 | . . . . . 87 Electromagnetic 938 | . . . . . 938 Impact . | . . . . . . Slashing . | . . . . . . Piercing . | . . . . . . Highest Corruption 5 | . . . . . 5 Average Corruption 5 | . . . . . 5 Corruption Purged . | . . . . . . Effects 9 | . . . . . 9 Message Errors 1 | . . . . . 1 Matter Fused 2 | . . . . . 2 Energy Discharges 2 | . . . . . 2 Data Loss (minor) 1 | . . . . . 1 Targeting Errors 3 | . . . . . 3 Overload Shots . | . . . . . . Overflow Damage 132 | . . . . . 132 Projectiles . | . . . . . . Explosions 132 | . . . . . 132 Melee . | . . . . . . Knockbacks . | . . . . . . Impact . | . . . . . . Kinetic . | . . . . . . Secondary . | . . . . . . Self-Inflicted Damage 325 | . 13 . . . 312 Shots 5 | . . . . . 5 Rammed 8 | . 8 . . . . Targets Rammed 8 | . 8 . . . . Kicked . | . . . . . . Crushed . | . . . . . . Highest Temperature 428 | . 17 31 . 38 428 Average Temperature 56 | . 4 4 . 10 122 Received Heat Transfer 1227 | . 282 63 . 225 657 Effects 3 | . . . . . 3 Shutdowns 1 | . . . . . 1 Interference 1 | . . . . . 1 Damage (major) 1 | . . . . . 1 Siege Activations . | . . . . . . Robots Corrupted 1 | . . . . . 1 Combat Hostiles . | . . . . . . Parts Fried 6 | . . . . . 6 Impact Corruptions . | . . . . . . Robots Melted . | . . . . . . Combat Hostiles . | . . . . . . Parts Melted . | . . . . . . Heat Transferred 1827 | . . . . . 1827 Parts Sabotaged . | . . . . . . Parts Stolen . | . . . . . . Parts Stripped . | . . . . . . Power Chain Reactions 4 | . . . . . 4 Missiles Intercepted . | . . . . . . Alert | -11 -10 -10 -10 -9 -8 ------- Run | Scr Mat Min Exi Min Mat Peak Influence 600 | . 292 254 . 140 600 Average Influence 210 | . 140 183 . 54 345 Maximum Alert Level 2 | . 1 1 . . 2 Low Security (%) 56 | 100 83 59 . 100 16 Level 1 28 | . 16 40 . . 47 Level 2 14 | . . . . . 36 Level 3 . | . . . . . . Level 4 . | . . . . . . Level 5 . | . . . . . . High Security . | . . . . . . Max Security . | . . . . . . Squads Dispatched 11 | . 5 . . . 6 Investigation 5 | . 2 . . . 3 Extermination . | . . . . . . Reinforcement 6 | . 3 . . . 3 Assault . | . . . . . . Garrison . | . . . . . . Intercept . | . . . . . . Construction Impeded 1 | . . . . . 1 Haulers Reinforced . | . . . . . . Stealth | -11 -10 -10 -10 -9 -8 --------- Run | Scr Mat Min Exi Min Mat Distress Signals 6 | . 2 . . . 4 Communications Jammed . | . . . . . . Distress Signals . | . . . . . . Times Spotted 86 | . 26 8 . 6 46 Peak Tracking Total 7 | . 6 3 . 3 7 Tactical Retreats 6 | . 1 . . 1 4 Traps | -11 -10 -10 -10 -9 -8 ------- Run | Scr Mat Min Exi Min Mat Traps Triggered 2 | . 1 . . . 1 Indirectly . | . . . . . . Trap Hack Attempts . | . . . . . . Triggered . | . . . . . . Disarmed . | . . . . . . Reprogrammed . | . . . . . . Reused . | . . . . . . Traps Extracted . | . . . . . . Installed . | . . . . . . Triggered . | . . . . . . Machines | -11 -10 -10 -10 -9 -8 ---------- Run | Scr Mat Min Exi Min Mat Machines Disabled 4 | . . . . . 4 Max in Single Turn 1 | . . . . . 1 Machines Sabotaged . | . . . . . . Garrisons Compromised . | . . . . . . Overloaded Fab Kills . | . . . . . . Fab Network Shutdowns . | . . . . . . Hacking | -11 -10 -10 -10 -9 -8 --------- Run | Scr Mat Min Exi Min Mat Machines Accessed 11 | . 5 . . . 6 Terminals 9 | . 5 . . . 4 Fabricators . | . . . . . . Repair Stations . | . . . . . . Recycling Units 1 | . . . . . 1 Scanalyzers 1 | . . . . . 1 Garrison Access . | . . . . . . Total Hacks 59 | . 36 . . . 23 Successful 39 | . 25 . . . 14 Failed 19 | . 10 . . . 9 Catastrophic 3 | . . . . . 3 Database Lockouts 1 | . 1 . . . . Manual 43 | . 24 . . . 19 Terminals 53 | . 36 . . . 17 Fabricators . | . . . . . . Repair Stations . | . . . . . . Recycling Units 5 | . . . . . 5 Scanalyzers 1 | . . . . . 1 Garrison Access . | . . . . . . Terminal Hacks 27 | . 22 . . . 5 Robot Analysis 1 | . 1 . . . . Prototype ID Bank 8 | . 8 . . . . Branch Access Points 1 | . 1 . . . . Terminal Index 1 | . 1 . . . . Alert Level 5 | . 2 . . . 3 Unreport Threat 3 | . 1 . . . 2 Locate Traps 1 | . 1 . . . . Dispatch Records 1 | . 1 . . . . Security Status 1 | . 1 . . . . Surveillance Status 1 | . 1 . . . . Investigation Status 1 | . 1 . . . . Hauler Manifests 1 | . 1 . . . . Registered Components 1 | . 1 . . . . Zone Layout 1 | . 1 . . . . Fabricator Hacks . | . . . . . . Repair Station Hacks . | . . . . . . Recycling Unit Hacks 1 | . . . . . 1 Report Inventory 1 | . . . . . 1 Scanalyzer . | . . . . . . Garrison Access Hacks . | . . . . . . Unauthorized Hacks 27 | . 8 . . . 19 Terminals 7 | . 3 . . . 4 Track 1 | . . . . . 1 Botnet 6 | . 3 . . . 3 Fabricators . | . . . . . . Repair Stations . | . . . . . . Recycling Units 3 | . . . . . 3 Monitor 1 | . . . . . 1 Reject 1 | . . . . . 1 Mask 1 | . . . . . 1 Scanalyzers 1 | . . . . . 1 Extract 1 | . . . . . 1 Garrison Access . | . . . . . . Data Cores Recovered . | . . . . . . Used . | . . . . . . Hacking Detections 10 | . 5 . . . 5 Full Trace Events 1 | . . . . . 1 Feedback Events . | . . . . . . Feedback Blocked . | . . . . . . Robot Schematics Acquired . | . . . . . . Robots Built . | . . . . . . Matter . | . . . . . . Time . | . . . . . . Total Robot Build Rating . | . . . . . . Part Schematics Acquired 6 | . . . . . 6 Parts Built . | . . . . . . Matter . | . . . . . . Time . | . . . . . . Total Part Build Rating . | . . . . . . Parts Repaired . | . . . . . . Time . | . . . . . . Parts Recycled . | . . . . . . Recycled Matter . | . . . . . . Retrieved Matter . | . . . . . . Retrieved Components . | . . . . . . Parts Scanalyzed . | . . . . . . Part Schematics Acquired . | . . . . . . Parts Damaged . | . . . . . . Bothacking | -11 -10 -10 -10 -9 -8 ------------ Run | Scr Mat Min Exi Min Mat Used RIF Installer . | . . . . . . Robots Hacked . | . . . . . . Non-combat . | . . . . . . Combat . | . . . . . . Robot Hacks Applied . | . . . . . . Relay Couplers Released . | . . . . . . Robots Rewired . | . . . . . . Allies Hacked . | . . . . . . Hacks Repelled . | . . . . . . Allies | -11 -10 -10 -10 -9 -8 -------- Run | Scr Mat Min Exi Min Mat Total Allies . | . . . . . . Largest Group . | . . . . . . Highest-Rated Group . | . . . . . . Highest-Rated Ally . | . . . . . . Total Orders . | . . . . . . Ally Attacks . | . . . . . . Total Damage . | . . . . . . Kills . | . . . . . . Allies Corrupted . | . . . . . . Allies Melted . | . . . . . . Intel | -11 -10 -10 -10 -9 -8 ------- Run | Scr Mat Min Exi Min Mat Robot Analysis Total 1 | . 1 . . . . Derelict Logs Recovered 4 | . . 2 . 2 . Drone Launches . | . . . . . . Drone Recoveries . | . . . . . . Exploration | -11 -10 -10 -10 -9 -8 ------------- Run | Scr Mat Min Exi Min Mat Turns Passed 1842 | 16 539 262 13 306 706 Spaces Moved 2566 | 32 837 388 31 412 866 Core 224 | 32 180 . . 3 9 Treads . | . . . . . . Legs . | . . . . . . Wheels . | . . . . . . Hover . | . . . . . . Flight 2342 | . 657 388 31 409 857 Fastest Speed 32 | 50 40 40 40 40 32 Average Speed 39 | 50 42 40 40 40 34 Slowest Speed 100 | 50 50 40 40 50 100 Overloaded Moves . | . . . . . . Propulsion Burnouts . | . . . . . . Robots Hopped 42 | . 13 3 . 7 19 Cave-ins Triggered . | . . . . . . Exploration Rate (%) 52 | 4 91 82 8 79 53 Regions Visited 5 Branch Regions 3 Pre-discovered Areas 1 | . . . . 1 . Known Exits Taken 2 | . 1 1 . . . Unknown Exits Taken 3 | 1 . . 1 1 . Scrap Searched 1 | . . . . 1 . Spaces Dug . | . . . . . . Terrain Destroyed 86 | . . . . . 86 Melee . | . . . . . . Projectile 2 | . . . . . 2 AOE 84 | . . . . . 84 Actions | -11 -10 -10 -10 -9 -8 --------- Run | Scr Mat Min Exi Min Mat Total 3035 | 31 946 447 30 476 1105 Wait 111 | . 13 16 . 14 68 Move 2480 | 31 810 381 30 398 830 Hop 39 | . 13 3 . 6 17 Pick Up . | . . . . . . Fast Attach 30 | . 6 3 . 4 17 Attach . | . . . . . . Detach . | . . . . . . Swap 5 | . 1 1 . . 3 Drop 19 | . . 3 . 4 12 Fire 226 | . 71 27 . 38 90 Melee . | . . . . . . Ram 8 | . 8 . . . . Kick . | . . . . . . Crush . | . . . . . . Escape Stasis . | . . . . . . Rewire 16 | . . . . . 16 Trap . | . . . . . . Miscellaneous 101 | . 24 13 . 12 52 Route ------- -11/Scrapyard -10/Materials (discovered 5 exits: [*Mat x3] / *Min x2) -10/Mines (discovered 3 exits: [*Mat x2] / *Exi) -10/Exiles -9/Mines (discovered 2 exits: *Mat x2) -8/Materials (discovered 2 exits: [*Fac] / [*Sto]) History --------- Turn | Location | Event 4 | -11/Scrapyard | Discovered new exit (range 16) 17 | -11/Scrapyard | Entered Materials 28 | -10/Materials | Identified exit to Mines 71 | -10/Materials | Discovered new exit (range 16) 223 | -10/Materials | Discovered new exit (range 14) 320 | -10/Materials | Build established: Hacker-Mutant 396 | -10/Materials | Reached level 2 405 | -10/Materials | Upgraded with Utility slot (x1) 405 | -10/Materials | Upgraded with Weapon slot (x1) 522 | -10/Materials | Discovered new exit (range 18) 522 | -10/Materials | Central database locked down 556 | -10/Materials | Entered Mines 572 | -10/Mines | Discovered new exit (range 9) 573 | -10/Mines | Identified exit to Exiles 647 | -10/Mines | Reached level 3 664 | -10/Mines | Upgraded with Utility slot (x1) 679 | -10/Mines | Learned Materials stockpile data 704 | -10/Mines | Discovered new exit (range 17) 816 | -10/Mines | Deemed a non-threat by the Exiles lab entrance 818 | -10/Mines | Entered Exiles 824 | -10/Exiles | Discovered new exit (range 16) 831 | -10/Exiles | Entered Mines 834 | -9/Mines | Met a Derelict bent on vengeance 837 | -9/Mines | Found a damaged Exp. Sensor Array with a note attached 839 | -9/Mines | Found Prototype Device 839 | -9/Mines | Identified Exp. Sensor Array 930 | -9/Mines | Learned location of Zion (-6) 1023 | -9/Mines | Discovered new exit (range 7) 1067 | -9/Mines | Learned Materials terminal intel 1068 | -9/Mines | Received a Rocket Launcher from a helpful Derelict 1107 | -9/Mines | Reached level 4 1124 | -9/Mines | Discovered new exit (range 8) 1137 | -9/Mines | Entered Materials 1139 | -8/Materials | Loaded intel: 12 terminal locations 1139 | -8/Materials | Reached level 5 1164 | -8/Materials | Upgraded with Utility slot (x2) 1218 | -8/Materials | Discovered new exit (range 11) 1256 | -8/Materials | Core integrity fell below 50% 1396 | -8/Materials | Reached level 6 1461 | -8/Materials | Upgraded with Propulsion slot (x1) 1689 | -8/Materials | Reached level 7 1704 | -8/Materials | Upgraded with Utility slot (x1) 1774 | -8/Materials | Discovered new exit (range 16) 1829 | -8/Materials | Core integrity fell below 20% 1843 | -8/Materials | Destroyed by H-55 Commando with Gauss Rifle Last Messages --------------- 01822_ S-10 Pest destroyed. 01823_ >> MONITOR: Recycling Unit M002 accepting Flight Unit(20%). 01825_ S-10 Pest destroyed. 01826_ >> MONITOR: Recycling Unit M002 accepting Imp. Assault Rifle(69%). 01828_ Chain reaction triggered in Lgt. Ion Engine. 01828_ S-10 Pest destroyed. 01828_ Nuclear Reactor explodes. 01828_ Destroyed Wheel. 01828_ Destroyed Lgt. Ion Engine. 01828_ Destroyed Wheel. 01829_ >> MONITOR: Recycling Unit M002 accepting Wheel(87%). 01829_ ALERT: Construction progress impeded, dispatching reinforcements to local area. 01831_ The unstable cave ceiling collapses. 01837_ K-01 Serf cleans the Repair Station. 01837_ Slug penetrates Repair Station. 01840_ K-01 Serf cleans the Repair Station. 01840_ Penetrated by Slug. 01843_ System corrupted: Matter fused (-8). 01843_ Penetrated by Slug. Map ----- +----------------------------------------------------+ | ???## +="Y # == "#### | | #####+###### ##### "" # T#### | | # ## ##### # """ "#### | | # """ """ ## ##?## """# """ "#### | | # """ """ ## ##### """# """ "#### | | # """ """ + # """# ##?? | | # ### / # #########?# | | # ##### """###########?#########? | | # ##### R"###########?#######??? | | # ##### """###############?###?#? | | ############### ##################?### | | #?############# ########?###??###?#??# | | ###??# # ######??#?#?####??#?## | | ####?# """ # #################?#??? | | ##?### """ # ############?###?#??#? | | ##?### """ # #? ##??#???#?#?# | | #?#### # # """ ####?#?#?#??# | | ####?# """ # % # """ ]####?##??#??? | | ###### """ + " # ! """ ####?###????# | | ?#####! """ # """ # ]#######?#?#?# | | ###?## # """ # """ #########?### | | ########+###### """ + """ ###?##?###??# | | #####?## r "" # """ !###?##??? ? | | ##?# # = """ #! ######? "? ?? | | #### # * "" ##########?###????" ?? | | ?##### "" @ ##########?####?? " # | | #### # " %######?#?###### ? ??# | | #?# """ w ##############? ? | | ### "" # h% #################/#### | | ?### """ " = # | | ?#?# """ + | | #### """ # | | #### # """ ###+######### # | | #??# ! # "" # #??##### # | | ??############ """ #"" #####?## """" # | | ??############ "" #"Y | ####?#?? """" # | | ###?### g "" #"" ####?##? ??""" | | ?#?##"" " # ##?###?# ? ? ? | | #???#T < # == ####??## ?? ? ? | | ##?#### # == ###?#?#?? ????#? | | ?###### # == # ? ??? ??"??? | | #####?#################### # ? ?#?? # "??? | | ##?###################?######## ? ? +?? ??"?? | | ?##?#??####??##################??? ? # ?# ??? | | ????###?###?############?#####? ??!??? ?? ? ? | | ???##??#?####?###?#???#?###????? ?? ?? ?? ?? ? | | ???#??###????#??####?##?##??###?##?#??? ?#????? | | ?????#?#?##??#????##?##?????##??#?#??#? #?#??? | | ?#??????#????##????#?#???##??####??#?? ??#????? | | ????????????######????#####?#?#??????#?? ?????? | +----------------------------------------------------+ Best States ------------- Heat Dissipation 43 Energy Generation 14 Energy Capacity 160 Matter Stores 300 Matter Capacity 300 Sight Range 17 Robot Scan Range 30 Terrain Scan Range 20 Terrain Scan Density 310 Base Temperature (-) 100 Evasion (%) 63 Targeting Accuracy 16 Target Analysis 5 Armor Integrity Analysis 33 Offensive Hacking 10 Defensive Hacking 15 Item Schematics ----------------- Imp. Power Shielding | -8/Materials | Extracted Maneuvering Thrusters | -8/Materials | Extracted Adv. Sensor Array | -8/Materials | Extracted EM Pulse Cannon | -8/Materials | Extracted Com. Matter Pod | -8/Materials | Extracted Lrn. Tractor Beam | -8/Materials | Extracted Robot Schematics ------------------ None Fabricated ------------ Nothing Alien Tech Used ----------------- None Achievements -------------- None Challenges ------------ None RPGLIKE | -11 -10 -10 -10 -9 -8 --------- Run | Scr Mat Min Exi Min Mat Levels Raised 6 | . 1 1 . 1 3 XP Earned 13144 | 3000 1810 1400 200 1100 5634 XP Spent 11620 | . 3900 1910 . . 5810 Upgrades 25 | . 10 6 . . 9 Propulsion Slot 1 | . . . . . 1 Utility Slot 5 | . 1 1 . . 3 Weapon Slot 1 | . 1 . . . . Heat Dissipation 3 | . . . . . 3 Mass Support 2 | . 1 . . . 1 Sight Range 1 | . . 1 . . . Terrain Scan Density 3 | . . 3 . . . Ranged Accuracy 4 | . 3 . . . 1 Hack Attack % 2 | . 2 . . . . Hack Defense % 3 | . 2 1 . . . Protomatter Created 800 | . 201 91 . 89 419 Integrity Restored 2130 | . 492 273 . 267 1098 Core 2033 | . 449 273 . 267 1044 Parts 97 | . 43 . . . 54 Protomatter Decayed 55 | . 34 . . . 21 Game ------ Seed AssemblyMissileChip Manual? 0 Play Time 00:31:17 Cumulative 112.9 hours Start 2019.12.28 @ 13:45:48 End 2019.12.28 @ 14:23:01 Sessions 1 Manual Loads 0 Difficulty Rogue Special Mode Winter2019/RPGLIKE Game No. 133 Rogue 133 Adventurer 0 Explorer 0 Win Type - Total 10 Types 9/0/0/1/0/0/0 Lore% 56 Gallery% 64 Achievement% 57 Wizard Run 0 Options --------- ASCII 0 Keyboard 0 Movement Numpad Keybinds 0 Fullscreen 2 Font 18/SmallcapsGlow Map View 76x50 Tactical HUD 1 Map Filters NONE Filters NONE Steam 1 RUN: 3ce2a78f-3f4d-44ca-a5cf-c733513fd92c